bitfinex/quotes_BTCUSD_20250219
["timestamp","ask_amount","ask_price","bid_price","bid_amount"]
[1739958459679,0.156169,96050.0,96046.0,0.19860988]
[1739958460109,0.0004256,96048.0,96046.0,0.19860988]
[1739958460321,0.0004256,96048.0,96046.0,0.19160988]
[1739958461429,0.0004256,96048.0,96046.0,0.17089184]
[1739958461637,0.1565976,96048.0,96046.0,0.17789184]
[1739958461919,0.0004256,96048.0,96046.0,0.17089184]
[1739958462339,0.0004256,96048.0,96046.0,0.17789184]
[1739958462555,0.0004256,96048.0,96046.0,0.17089184]
[1739958462979,0.0004256,96048.0,96046.0,0.17789184]
[1739958465182,0.1565976,96048.0,96046.0,0.17789184]
[1739958465605,0.1565976,96048.0,96046.0,0.17089184]
[1739958465809,0.0004256,96048.0,96046.0,0.17089184]
[1739958465986,0.0004256,96048.0,96046.0,0.17789184]
[1739958466375,0.016743,96048.0,96046.0,0.17789184]
[1739958471658,0.172915,96048.0,96046.0,0.17789184]
[1739958472595,0.156173,96047.0,96046.0,0.17789184]
[1739958473030,0.016743,96048.0,96046.0,0.17789184]
[1739958473444,0.0004256,96048.0,96046.0,0.17874304]
[1739958473640,0.1565976,96048.0,96046.0,0.17874304]
[1739958474243,0.1565976,96048.0,96046.0,0.17174304]
[1739958474687,0.0004256,96048.0,96047.0,0.05572]
[1739958474889,0.1565966,96048.0,96047.0,0.05572]
[1739958475113,0.1565966,96048.0,96047.0,0.06878782]
[1739958475643,0.0004256,96048.0,96047.0,0.06878782]
[1739958475850,0.0004256,96048.0,96047.0,0.07578782]
[1739958476625,0.13349531,96055.0,96047.0,0.07578782]
[1739958476790,0.156171,96048.0,96047.0,0.07578782]
[1739958477007,0.1504255,96059.0,96047.0,0.07578782]
[1739958477166,0.15617,96050.0,96047.0,0.07578782]
[1739958477365,0.15617,96050.0,96047.0,0.06878782]
[1739958477775,0.15617,96050.0,96047.0,0.07578782]
[1739958477985,0.17248738,96050.0,96047.0,0.06878782]
[1739958478187,0.15617,96049.0,96047.0,0.07578782]
[1739958478600,0.15617,96049.0,96047.0,0.06878782]
[1739958478801,0.15617,96049.0,96047.0,0.07578782]
[1739958479298,0.15617,96049.0,96047.0,0.06878782]
[1739958480684,0.15617,96049.0,96047.0,0.07578782]
[1739958480909,0.15617,96049.0,96047.0,0.06878782]
[1739958481112,0.156171,96048.0,96047.0,0.07578782]
[1739958481426,0.156171,96048.0,96047.0,0.06878782]
[1739958481723,0.156171,96048.0,96047.0,0.07578782]
[1739958482111,0.156171,96048.0,96047.0,0.01306782]
[1739958482891,0.156171,96048.0,96047.0,0.02006782]
[1739958484125,0.156171,96048.0,96047.0,0.01306782]
[1739958484502,0.156171,96048.0,96047.0,0.02006782]
[1739958484699,0.156171,96048.0,96047.0,0.01306782]
[1739958485150,0.156171,96048.0,96047.0,0.02006782]
[1739958485748,0.07649101,96049.0,96047.0,0.02006782]
[1739958486487,0.156171,96048.0,96047.0,0.02006782]
[1739958487836,0.156171,96048.0,96047.0,0.01306782]
[1739958488090,0.156171,96048.0,96047.0,0.02006782]
[1739958488340,0.156171,96048.0,96047.0,0.01306782]
[1739958488828,0.156171,96048.0,96047.0,0.02006782]
[1739958493295,0.306171,96048.0,96047.0,0.02006782]
[1739958496261,0.32248944,96048.0,96047.0,0.02006782]
[1739958496679,0.32248944,96048.0,96047.0,0.02091882]
[1739958498094,0.16631844,96048.0,96047.0,0.02091882]
[1739958498287,0.01631844,96048.0,96047.0,0.02091882]
[1739958498493,0.01631844,96048.0,96047.0,0.09641882]
[1739958499282,0.01631844,96048.0,96047.0,0.19892247]
[1739958505022,0.15,96050.0,96047.0,0.19892247]
[1739958505219,0.306168,96050.0,96048.0,0.10250365]
[1739958505420,0.15,96050.0,96049.0,0.01306709]
[1739958505649,0.15,96050.0,96049.0,0.11557074]
[1739958506409,0.15,96050.0,96049.0,0.17125074]
[1739958506810,0.306168,96050.0,96049.0,0.11557074]
[1739958506985,0.306168,96050.0,96049.0,0.06870709]
[1739958507989,0.32248578,96050.0,96049.0,0.06870709]
[1739958508387,0.32248578,96050.0,96049.0,0.07570709]
[1739958509705,0.32291128,96050.0,96049.0,0.07570709]
[1739958513245,0.3065935,96050.0,96049.0,0.07570709]
[1739958516340,0.32291128,96050.0,96049.0,0.07570709]
[1739958518979,0.31913139,96050.0,96049.0,0.07570709]
[1739958521412,0.31913139,96050.0,96049.0,0.07655809]
[1739958522876,0.31913139,96050.0,96049.0,0.07667809]
[1739958524047,0.01674328,96050.0,96049.0,0.07667809]
[1739958524277,0.17291128,96050.0,96049.0,0.07667809]
[1739958526969,0.1565935,96050.0,96049.0,0.07667809]
[1739958529972,0.17291136,96050.0,96049.0,0.07667809]
[1739958530868,0.17291136,96050.0,96049.0,0.06967809]
[1739958531721,0.17291136,96050.0,96049.0,0.07667809]
[1739958537093,0.1565935,96050.0,96049.0,0.07667809]
[1739958539937,0.17291136,96050.0,96049.0,0.07667809]
[1739958540439,0.17291136,96050.0,96049.0,0.06967809]
[1739958540636,0.17291136,96050.0,96049.0,0.07667809]
[1739958543124,0.208218,96053.0,96049.0,0.07667809]
[1739958543380,0.156168,96050.0,96049.0,0.07667809]
[1739958544154,0.156168,96050.0,96049.0,0.06967809]
[1739958544418,0.156168,96050.0,96049.0,0.07667809]
[1739958544689,0.156168,96050.0,96049.0,0.06967809]
[1739958544901,0.156168,96050.0,96049.0,0.07667809]
[1739958546484,0.156168,96050.0,96049.0,0.15207809]
[1739958546695,0.0004255,96055.0,96050.0,0.0805]
[1739958546696,0.156162,96054.0,96050.0,0.0805]
[1739958546913,0.0004255,96052.0,96051.0,0.23240365]
[1739958547119,0.0004255,96052.0,96051.0,0.24497001]
[1739958547762,0.01674322,96052.0,96051.0,0.24497001]
[1739958548613,0.01674322,96052.0,96051.0,0.25197001]
[1739958549033,0.17290822,96052.0,96051.0,0.25197001]
[1739958549933,0.01674322,96052.0,96051.0,0.25197001]
[1739958550551,0.17290822,96052.0,96051.0,0.24497001]
[1739958550955,0.17290822,96052.0,96051.0,0.25197001]
[1739958551153,0.17290822,96052.0,96051.0,0.24497001]
[1739958551559,0.17290822,96052.0,96051.0,0.25197001]
[1739958551915,0.17290822,96052.0,96051.0,0.30765001]
[1739958553353,0.1565905,96052.0,96051.0,0.30765001]
[1739958555267,0.1565905,96052.0,96051.0,0.30065001]
[1739958555600,0.1565905,96052.0,96051.0,0.30765001]
[1739958557804,0.17290834,96052.0,96051.0,0.30765001]
[1739958560243,0.2086395,96055.0,96051.0,0.30765001]
[1739958560443,0.156165,96052.0,96051.0,0.30765001]
[1739958561120,0.358217,96054.0,96051.0,0.30765001]
[1739958561321,0.156165,96052.0,96051.0,0.30765001]
[1739958561734,0.156165,96052.0,96051.0,0.14946636]
[1739958562058,0.17248259,96052.0,96051.0,0.007]
[1739958563240,0.156165,96052.0,96051.0,0.007]
[1739958566308,0.17248272,96052.0,96051.0,0.007]
[1739958569437,0.32248272,96052.0,96051.0,0.007851]
[1739958569940,0.32290822,96052.0,96051.0,0.007851]
[1739958573463,0.3065905,96052.0,96051.0,0.007851]
[1739958577995,0.32290867,96052.0,96051.0,0.007851]
[1739958580186,0.32290867,96052.0,96051.0,0.000851]
[1739958580360,0.32290867,96052.0,96051.0,0.007851]
[1739958583436,0.3065905,96052.0,96051.0,0.007851]
[1739958587956,0.32290865,96052.0,96051.0,0.007851]
[1739958593612,0.32290865,96052.0,96051.0,0.087751]
[1739958596051,0.16674365,96052.0,96051.0,0.087751]
[1739958596256,0.16674365,96052.0,96051.0,0.14691736]
[1739958596452,0.16674365,96052.0,96051.0,0.30598101]
[1739958596878,0.1504255,96052.0,96051.0,0.30598101]
[1739958599838,0.16674123,96052.0,96051.0,0.30598101]
[1739958603459,0.1504255,96052.0,96051.0,0.30598101]
[1739958604563,0.0004255,96059.0,96051.0,0.30598101]
[1739958604766,0.156159,96056.0,96052.0,0.10250365]
[1739958604977,0.208207,96058.0,96052.0,0.11506964]
[1739958605184,0.0004255,96059.0,96052.0,0.11506964]
[1739958605378,0.208207,96058.0,96052.0,0.11506964]
[1739958605589,0.0004255,96059.0,96052.0,0.11506964]
[1739958605788,0.156158,96057.0,96052.0,0.11506964]
[1739958606507,0.01631521,96056.0,96052.0,0.12106964]
[1739958606735,0.01631521,96056.0,96052.0,0.11506964]
[1739958606937,0.01631521,96056.0,96052.0,0.12106964]
[1739958607114,0.01631521,96056.0,96052.0,0.11506964]
[1739958607505,0.01631521,96056.0,96052.0,0.12106964]
[1739958607700,0.01631521,96056.0,96052.0,0.11506964]
[1739958608159,0.01674071,96056.0,96052.0,0.11506964]
[1739958608307,0.156163,96053.0,96052.0,0.01256599]
[1739958608709,0.306165,96052.0,96051.0,0.000851]
[1739958610898,0.306165,96052.0,96051.0,0.007851]
[1739958614084,0.306165,96052.0,96051.0,0.02041736]
[1739958614300,0.306165,96052.0,96051.0,0.007851]
[1739958614490,0.306165,96052.0,96051.0,0.02041736]
[1739958614719,0.306165,96052.0,96051.0,0.007851]
[1739958614924,0.306165,96052.0,96051.0,0.02041736]
[1739958615246,0.156165,96052.0,96051.0,0.02041736]
[1739958616812,0.306164,96053.0,96051.0,0.02041736]
[1739958617011,0.01631562,96052.0,96051.0,0.12292101]
[1739958617218,0.01631562,96052.0,96051.0,0.20182101]
[1739958622123,0.01631562,96052.0,96051.0,0.25850101]
[1739958622729,0.0004255,96056.0,96051.0,0.25850101]
[1739958622947,0.0004255,96056.0,96052.0,0.10250365]
[1739958623161,0.0004255,96056.0,96053.0,0.01256563]
[1739958623387,0.1565845,96056.0,96053.0,0.11506928]
[1739958623699,0.0004255,96056.0,96053.0,0.11506928]
[1739958624011,0.15616,96055.0,96053.0,0.11506928]
[1739958625049,0.156162,96054.0,96053.0,0.11506928]
[1739958625284,0.0004255,96056.0,96053.0,0.11506928]
[1739958625559,0.156161,96055.0,96053.0,0.11506928]
[1739958625798,0.0004255,96056.0,96053.0,0.11506928]
[1739958626282,0.0004255,96056.0,96053.0,0.12106928]
[1739958626958,0.15616,96055.0,96053.0,0.12106928]
[1739958627403,0.0004255,96056.0,96053.0,0.12106928]
[1739958627690,0.17247683,96055.0,96053.0,0.12106928]
[1739958627894,0.17247683,96055.0,96053.0,0.11506928]
[1739958628135,0.17247683,96055.0,96053.0,0.12206928]
[1739958628321,0.17247683,96055.0,96053.0,0.11506928]
[1739958628529,0.17247683,96055.0,96053.0,0.12206928]
[1739958628935,0.17247683,96055.0,96053.0,0.11506928]
[1739958629141,0.17247683,96055.0,96053.0,0.12206928]
[1739958629313,0.01631483,96055.0,96053.0,0.12206928]
[1739958629532,0.17247583,96055.0,96053.0,0.12206928]
[1739958630357,0.01631483,96055.0,96053.0,0.12206928]
[1739958631105,0.17247583,96055.0,96053.0,0.12206928]
[1739958631238,0.01631483,96055.0,96053.0,0.12206928]
[1739958632475,0.17247483,96055.0,96053.0,0.12206928]
[1739958632678,0.01631483,96055.0,96053.0,0.12206928]
[1739958633583,0.0004255,96056.0,96053.0,0.12206928]
[1739958634436,0.0004255,96056.0,96053.0,0.11506928]
[1739958635352,0.0004255,96056.0,96053.0,0.12206928]
[1739958636414,0.0004255,96056.0,96054.0,0.10250365]
[1739958636609,0.0004255,96056.0,96054.0,0.15898365]
[1739958636795,0.01673992,96056.0,96055.0,0.01210318]
[1739958637020,0.01673992,96056.0,96055.0,0.10250365]
[1739958637215,0.01673992,96056.0,96055.0,0.23730683]
[1739958638140,0.01673992,96056.0,96055.0,0.24430683]
[1739958638341,0.01673992,96056.0,96055.0,0.29374683]
[1739958638547,0.01673992,96056.0,96055.0,0.30074683]
[1739958638898,0.01673992,96056.0,96055.0,0.45690683]
[1739958639445,0.0004255,96056.0,96055.0,0.44990683]
[1739958640194,0.0004255,96056.0,96055.0,0.29374683]
[1739958640418,0.0004255,96056.0,96055.0,0.29370683]
[1739958640813,0.0004255,96056.0,96055.0,0.30070683]
[1739958641046,0.12216024,96065.0,96055.0,0.30070683]
[1739958641249,0.0615149,96065.0,96056.0,0.10250365]
[1739958641763,0.0615149,96065.0,96057.0,0.01210253]
[1739958641941,0.0615149,96065.0,96058.0,0.10250365]
[1739958642148,0.0615149,96065.0,96059.0,0.01210189]
[1739958642365,0.0615149,96065.0,96060.0,0.10250365]
[1739958642716,0.0615149,96065.0,96061.0,0.01210125]
[1739958642910,0.0615149,96065.0,96062.0,0.10250365]
[1739958643334,0.0615149,96065.0,96063.0,0.01210061]
[1739958643533,0.0615149,96065.0,96063.0,0.11460426]
[1739958643734,0.08508836,96065.0,96063.0,0.11460426]
[1739958644151,0.08508836,96065.0,96063.0,0.10250365]
[1739958644515,0.08508836,96065.0,96064.0,0.01210028]
[1739958645689,0.08508836,96065.0,96064.0,0.01910028]
[1739958646089,0.08551386,96065.0,96064.0,0.01910028]
[1739958646290,0.24165786,96065.0,96064.0,0.01910028]
[1739958646493,0.18057774,96065.0,96064.0,0.01910028]
[1739958646993,0.18057774,96065.0,96064.0,0.007]
[1739958648237,0.02443374,96065.0,96064.0,0.007]
[1739958648472,0.18057774,96065.0,96064.0,0.007]
[1739958649215,0.16758772,96067.0,96064.0,0.007]
[1739958649755,0.156144,96065.0,96064.0,0.007]
[1739958650174,0.156142,96066.0,96064.0,0.007]
[1739958650341,0.156142,96066.0,96065.0,0.0818]
[1739958650951,0.1797236,96066.0,96065.0,0.0818]
[1739958651899,0.0235816,96066.0,96065.0,0.0888]
[1739958652209,0.15,96067.0,96065.0,0.10089513]
[1739958652390,0.306141,96067.0,96066.0,0.0120948]
[1739958652711,0.306141,96067.0,96065.0,0.0888]
[1739958653069,0.15,96068.0,96065.0,0.0888]
[1739958653271,0.17310633,96068.0,96065.0,0.0818]
[1739958653472,0.32924633,96068.0,96065.0,0.0818]
[1739958653779,0.156141,96067.0,96066.0,0.007]
[1739958654220,0.156141,96067.0,96065.0,0.0818]
[1739958654822,0.156141,96067.0,96066.0,0.0120948]
[1739958657001,0.02319837,96068.0,96066.0,0.0120948]
[1739958657351,0.15,96067.0,96066.0,0.0120948]
[1739958657558,0.15,96067.0,96066.0,0.007]
[1739958657781,0.15,96067.0,96065.0,0.0818]
[1739958658191,0.15,96067.0,96066.0,0.007]
[1739958658396,0.15,96067.0,96065.0,0.0818]
[1739958658721,0.15,96067.0,96066.0,0.01964408]
[1739958658958,0.15,96067.0,96066.0,0.01264408]
[1739958659610,0.15,96067.0,96065.0,0.0888]
[1739958659872,0.03984118,96068.0,96066.0,0.01264408]
[1739958660072,0.03984118,96068.0,96065.0,0.0888]
[1739958660279,0.03984118,96068.0,96067.0,0.01264373]
[1739958660484,0.03984118,96068.0,96066.0,0.01264408]
[1739958660705,0.03984118,96068.0,96067.0,0.01264373]
[1739958660891,0.15,96067.0,96066.0,0.007]
[1739958661100,0.15,96067.0,96065.0,0.0818]
[1739958661531,0.15,96067.0,96065.0,0.0888]
[1739958661733,0.15,96067.0,96065.0,0.0818]
[1739958661937,0.03984118,96068.0,96067.0,0.007]
[1739958662964,0.03984118,96068.0,96065.0,0.0818]
[1739958663133,0.19598018,96068.0,96065.0,0.0818]
[1739958663358,0.15,96067.0,96065.0,0.0818]
[1739958664194,0.03984118,96068.0,96065.0,0.0888]
[1739958664586,0.15,96067.0,96065.0,0.0888]
[1739958665020,0.15,96067.0,96065.0,0.0818]
[1739958665403,0.15,96067.0,96065.0,0.0888]
[1739958665736,0.306141,96067.0,96065.0,0.0818]
[1739958665930,0.03984118,96068.0,96065.0,0.0888]
[1739958666138,0.15,96067.0,96065.0,0.0888]
[1739958667353,0.03984118,96068.0,96066.0,0.01264408]
[1739958667495,0.19598118,96068.0,96066.0,0.01264408]
[1739958667705,0.17967222,96068.0,96065.0,0.0888]
[1739958668038,0.15,96066.0,96065.0,0.0888]
[1739958668248,0.15,96066.0,96065.0,0.0818]
[1739958669022,0.15,96066.0,96065.0,0.0888]
[1739958669229,0.15,96066.0,96065.0,0.0818]
[1739958669475,0.33011089,96068.0,96065.0,0.0818]
[1739958669976,0.15,96068.0,96065.0,0.0818]
[1739958670201,0.15,96066.0,96065.0,0.0818]
[1739958670404,0.15,96066.0,96065.0,0.082651]
[1739958670534,0.15,96066.0,96065.0,0.089651]
[1739958671059,0.306142,96066.0,96065.0,0.082651]
[1739958671379,0.306142,96066.0,96065.0,0.089651]
[1739958671582,0.306142,96066.0,96065.0,0.082651]
[1739958671791,0.306142,96066.0,96065.0,0.089651]
[1739958673105,0.15,96066.0,96065.0,0.089651]
[1739958673476,0.306142,96066.0,96065.0,0.089651]
[1739958673686,0.15,96066.0,96065.0,0.089651]
[1739958674356,0.156142,96066.0,96065.0,0.089651]
[1739958675001,0.17432216,96068.0,96065.0,0.089651]
[1739958675205,0.156142,96066.0,96065.0,0.089651]
[1739958677281,0.19063355,96068.0,96065.0,0.089651]
[1739958677542,0.156142,96066.0,96065.0,0.089651]
[1739958677723,0.156142,96066.0,96065.0,0.50369129]
[1739958677972,0.392642,96066.0,96065.0,0.50369129]
[1739958678180,0.392642,96066.0,96065.0,0.47464525]
[1739958678181,1.452477,96066.0,96065.0,0.47464525]
[1739958678401,1.29984,96066.0,96065.0,0.47464525]
[1739958678633,1.01436852,96066.0,96065.0,0.48164525]
[1739958678839,0.993698,96066.0,96065.0,0.47464525]
[1739958679063,1.14984,96066.0,96065.0,0.47864525]
[1739958679246,1.049676,96066.0,96065.0,0.47864525]
[1739958680509,1.199676,96066.0,96065.0,0.47864525]
[1739958681527,0.392642,96066.0,96065.0,0.40740642]
[1739958681749,2.360855,96066.0,96065.0,0.40740642]
[1739958681906,1.442885,96066.0,96065.0,0.40740642]
[1739958682106,0.604884,96066.0,96065.0,0.40740642]
[1739958682473,0.553262,96066.0,96065.0,0.40740642]
[1739958683976,0.553262,96066.0,96065.0,0.40340642]
[1739958684171,0.553262,96066.0,96065.0,0.40525742]
[1739958684378,0.72179,96066.0,96065.0,0.40425742]
[1739958684577,0.441133,96066.0,96065.0,0.40425742]
[1739958684781,0.441133,96066.0,96065.0,0.40525742]
[1739958685305,0.20301287,96066.0,96065.0,0.40525742]
[1739958685477,0.291133,96066.0,96065.0,0.40525742]
[1739958686512,0.30744364,96066.0,96065.0,0.40525742]
[1739958687283,0.17245264,96066.0,96065.0,0.40525742]
[1739958687483,0.17245264,96066.0,96065.0,0.40425742]
[1739958687711,0.32245264,96066.0,96065.0,0.40425742]
[1739958687888,0.32245264,96066.0,96065.0,0.40625742]
[1739958688092,0.32245264,96066.0,96065.0,0.40425742]
[1739958688537,0.32245264,96066.0,96065.0,0.40625742]
[1739958688834,0.32245264,96066.0,96065.0,0.40425742]
[1739958689011,0.32245264,96066.0,96065.0,0.40725742]
[1739958690283,0.32245264,96066.0,96065.0,0.40425742]
[1739958690657,0.32245264,96066.0,96065.0,0.40725742]
[1739958690877,0.32245264,96066.0,96065.0,0.40425742]
[1739958691189,0.32245264,96066.0,96065.0,0.41990186]
[1739958691592,0.32245264,96066.0,96065.0,0.41690186]
[1739958691799,0.32245264,96066.0,96065.0,0.41990186]
[1739958692003,0.32245264,96066.0,96065.0,0.41690186]
[1739958693347,0.306142,96066.0,96065.0,0.41990186]
[1739958693703,0.306142,96066.0,96065.0,0.41690186]
[1739958693906,0.306142,96066.0,96065.0,0.41990186]
[1739958694260,0.306142,96066.0,96065.0,0.41690186]
[1739958694470,0.306142,96066.0,96065.0,0.41990186]
[1739958694808,0.306142,96066.0,96065.0,0.41690186]
[1739958694992,0.306142,96066.0,96065.0,0.41990186]
[1739958696211,0.306142,96066.0,96065.0,0.41690186]
[1739958696556,0.32287675,96066.0,96065.0,0.41990186]
[1739958696901,0.32287675,96066.0,96065.0,0.41690186]
[1739958697106,0.32287675,96066.0,96065.0,0.41990186]
[1739958697308,0.32287675,96066.0,96065.0,0.41690186]
[1739958697830,0.32287675,96066.0,96065.0,0.41990186]
[1739958698630,0.17287675,96066.0,96065.0,0.49720186]
[1739958698835,0.01673475,96066.0,96065.0,0.49720186]
[1739958699039,0.17287675,96066.0,96065.0,0.49720186]
[1739958699236,0.32287675,96066.0,96065.0,0.49720186]
[1739958699882,0.32287675,96066.0,96065.0,0.50120186]
[1739958700293,0.32287675,96066.0,96065.0,0.49720186]
[1739958700497,0.17287675,96066.0,96065.0,0.50420186]
[1739958700621,0.17387675,96066.0,96065.0,0.50420186]
[1739958703461,0.1575675,96066.0,96065.0,0.42390186]
[1739958704179,0.1565675,96066.0,96065.0,0.41690186]
[1739958704578,0.1575675,96066.0,96065.0,0.42390186]
[1739958704986,0.1518675,96066.0,96065.0,0.42390186]
[1739958706697,0.16817556,96066.0,96065.0,0.42390186]
[1739958709291,0.31860106,96066.0,96065.0,0.42390186]
[1739958711588,0.15,96067.0,96065.0,0.42390186]
[1739958711948,0.17245008,96066.0,96065.0,0.42390186]
[1739958713881,0.17245008,96066.0,96065.0,0.41690186]
[1739958714015,0.17245008,96066.0,96065.0,0.42290186]
[1739958714544,0.17245008,96066.0,96065.0,0.41690186]
[1739958714757,0.17345008,96066.0,96065.0,0.42390186]
[1739958718414,0.307142,96066.0,96065.0,0.42390186]
[1739958718754,0.14822472,96066.0,96065.0,0.42390186]
[1739958719243,0.30436672,96066.0,96065.0,0.42390186]
[1739958721109,0.30479222,96066.0,96065.0,0.42390186]
[1739958721303,0.32109855,96066.0,96065.0,0.42390186]
[1739958723401,0.30479222,96066.0,96065.0,0.42390186]
[1739958726625,0.32109862,96066.0,96065.0,0.42390186]
[1739958733321,0.30479222,96066.0,96065.0,0.42390186]
[1739958736404,0.3210978,96066.0,96065.0,0.42390186]
[1739958737024,0.01673108,96066.0,96065.0,0.42390186]
[1739958737266,0.17287308,96066.0,96065.0,0.50000186]
[1739958737960,0.01673108,96066.0,96065.0,0.54860186]
[1739958739263,0.01673108,96066.0,96065.0,0.70474586]
[1739958739474,0.01673108,96066.0,96065.0,0.80724951]
[1739958739680,0.01673108,96066.0,96065.0,0.54490795]
[1739958739895,0.01673108,96066.0,96065.0,0.49916311]
[1739958740094,0.01673108,96066.0,96065.0,0.49216311]
[1739958740537,0.01773108,96066.0,96065.0,0.41951162]
[1739958740947,0.01773108,96066.0,96065.0,0.25960281]
[1739958741152,0.01773108,96066.0,96065.0,0.2654473]
[1739958741364,0.01673108,96066.0,96065.0,0.2584473]
[1739958741577,0.01773108,96066.0,96065.0,0.2654473]
[1739958741782,0.01773108,96066.0,96065.0,0.12914454]
[1739958742643,0.01773108,96066.0,96065.0,0.02664089]
[1739958743271,0.0014255,96066.0,96065.0,0.02664089]
[1739958743474,0.0014255,96066.0,96061.0,0.05436557]
[1739958743678,0.0014255,96066.0,96061.0,0.05243635]
[1739958743888,0.0014255,96066.0,96061.0,0.04362865]
[1739958744094,0.0014255,96066.0,96062.0,0.02166379]
[1739958744355,0.0004255,96066.0,96062.0,0.02166379]
[1739958744769,0.0004255,96066.0,96063.0,0.1226]
[1739958745161,0.0004255,96066.0,96064.0,0.02166186]
[1739958745373,0.0004255,96066.0,96065.0,0.000851]
[1739958745770,0.00708385,96065.0,96063.0,0.08742241]
[1739958746772,0.00708385,96065.0,96063.0,0.05387869]
[1739958746976,0.00708385,96065.0,96063.0,0.05887869]
[1739958747179,0.00708385,96065.0,96063.0,0.02033497]
[1739958747591,0.00808385,96065.0,96063.0,0.02533497]
[1739958747788,0.00808385,96065.0,96052.0,0.03838249]
[1739958748011,0.00808385,96065.0,96063.0,0.005]
[1739958748417,0.00808385,96065.0,96051.0,0.000851]
[1739958748630,0.00908385,96065.0,96063.0,0.005]
[1739958749575,0.00908385,96065.0,96045.0,0.1106]
[1739958749779,0.06108012,96055.0,96049.0,0.00043478]
[1739958749982,0.12216024,96060.0,96049.0,0.00043478]
[1739958750191,0.12216024,96060.0,96045.0,0.19844033]
[1739958750435,0.06108012,96055.0,96045.0,0.0423078]
[1739958750600,0.06108012,96055.0,96045.0,0.02328438]
[1739958750800,0.06108012,96055.0,96048.0,0.156171]
[1739958751166,0.00708385,96059.0,96049.0,0.01270732]
[1739958751484,0.00708385,96059.0,96047.0,0.0776]
[1739958751687,0.00708385,96059.0,96047.0,0.03344726]
[1739958751937,0.00708385,96059.0,96048.0,0.01111975]
[1739958752741,0.16323785,96059.0,96048.0,0.01111975]
[1739958753479,0.001,96055.0,96048.0,0.01111975]
[1739958754233,0.16323785,96059.0,96048.0,0.01111975]
[1739958754664,0.16423785,96059.0,96048.0,0.01111975]
[1739958754861,0.16323785,96059.0,96048.0,0.01111975]
[1739958755066,0.156155,96058.0,96049.0,0.00778776]
[1739958755286,0.156155,96058.0,96050.0,0.01111782]
[1739958755493,0.00708385,96059.0,96050.0,0.01111782]
[1739958755687,0.00708385,96059.0,96046.0,0.13851073]
[1739958755888,0.06108012,96056.0,96047.0,0.16590398]
[1739958756089,0.00708385,96059.0,96047.0,0.16590398]
[1739958756290,0.001,96055.0,96047.0,0.16590398]
[1739958756501,0.00708385,96059.0,96047.0,0.16590398]
[1739958756762,0.00808385,96059.0,96047.0,0.16590398]
[1739958757118,0.00708385,96059.0,96047.0,0.00973098]
[1739958757321,0.00808385,96059.0,96047.0,0.16590398]
[1739958757744,0.01889602,96049.0,96047.0,0.16590398]
[1739958757930,0.01889602,96049.0,96047.0,0.00973098]
[1739958758125,0.01889602,96049.0,96045.0,0.04449678]
[1739958758330,0.01889602,96049.0,96046.0,0.16590595]
[1739958759597,0.01989602,96049.0,96046.0,0.16590595]
[1739958759772,0.01889602,96049.0,96046.0,0.00973195]
[1739958759979,0.01889602,96049.0,96048.0,0.09378866]
[1739958760193,0.01989602,96049.0,96048.0,0.09378866]
[1739958760394,0.01989602,96049.0,96048.0,0.10351868]
[1739958760768,0.01989602,96049.0,96048.0,0.06996743]
[1739958760967,0.01889602,96049.0,96048.0,0.06996743]
[1739958761550,0.01889602,96049.0,96048.0,0.00973002]
[1739958761824,0.01889602,96049.0,96045.0,0.27777278]
[1739958762350,0.01889602,96049.0,96046.0,0.00973195]
[1739958762495,0.01989602,96049.0,96046.0,0.00973195]
[1739958762696,0.01889602,96049.0,96046.0,0.00973195]
[1739958763087,0.01989602,96049.0,96046.0,0.00973195]
[1739958763267,0.001,96049.0,96046.0,0.00973195]
[1739958763495,0.06150572,96055.0,96046.0,0.00973195]
[1739958763610,0.001,96049.0,96046.0,0.00973195]
[1739958763818,0.001,96049.0,96047.0,0.156173]
[1739958764064,0.001,96049.0,96047.0,0.023]
[1739958764380,0.001,96049.0,96048.0,0.00851377]
[1739958764720,0.001,96049.0,96045.0,0.12159678]
[1739958764922,0.001,96049.0,96046.0,0.0085157]
[1739958765317,0.0004256,96055.0,96046.0,0.0085157]
[1739958765535,0.0004256,96055.0,96047.0,0.156173]
[1739958765742,0.001,96049.0,96048.0,0.00851377]
[1739958765945,0.0004256,96055.0,96048.0,0.00851377]
[1739958766144,0.001,96049.0,96048.0,0.00851377]
[1739958766462,0.0004256,96055.0,96048.0,0.16468477]
[1739958766666,0.0004256,96055.0,96048.0,0.00851377]
[1739958766879,0.001,96049.0,96048.0,0.00851377]
[1739958768785,0.001,96049.0,96045.0,0.27777178]
[1739958768999,0.0004256,96055.0,96048.0,0.00851377]
[1739958769178,0.0014256,96055.0,96046.0,0.156175]
[1739958769469,0.0014256,96055.0,96048.0,0.00779566]
[1739958769679,0.0004256,96055.0,96049.0,0.0085128]
[1739958770533,0.0014256,96055.0,96050.0,0.00779566]
[1739958770867,0.0004256,96055.0,96051.0,0.00851087]
[1739958772145,0.0014256,96055.0,96052.0,0.00779566]
[1739958772344,0.0014256,96055.0,96053.0,0.00850894]
[1739958772991,0.0004256,96055.0,96053.0,0.00850894]
[1739958773332,0.0014256,96055.0,96053.0,0.00850894]
[1739958773553,0.0004256,96055.0,96053.0,0.00850894]
[1739958773757,0.06108012,96063.0,96052.0,0.00779566]
[1739958773963,0.001,96055.0,96052.0,0.00779566]
[1739958774122,0.001,96055.0,96054.0,0.00779566]
[1739958774328,0.001,96055.0,96054.0,0.01630364]
[1739958775438,0.156149,96062.0,96054.0,0.01630364]
[1739958775857,0.156149,96062.0,96054.0,0.00779566]
[1739958776487,0.01630546,96061.0,96054.0,0.00779566]
[1739958776925,0.001,96055.0,96054.0,0.00779566]
[1739958777132,0.01630546,96061.0,96054.0,0.00779566]
[1739958777546,0.01630546,96061.0,96055.0,0.00779566]
[1739958777748,0.17245546,96061.0,96055.0,0.00779566]
[1739958778526,0.01630546,96061.0,96055.0,0.00779566]
[1739958779086,0.01730546,96061.0,96055.0,0.00779566]
[1739958779256,0.01730546,96061.0,96056.0,0.00779566]
[1739958779897,0.17345646,96061.0,96056.0,0.00779566]
[1739958780322,0.01730546,96061.0,96056.0,0.00779566]
[1739958780475,0.01630546,96061.0,96057.0,0.00779566]
[1739958780860,0.17245646,96061.0,96057.0,0.00779566]
[1739958781481,0.01630546,96061.0,96057.0,0.00779566]
[1739958781678,0.01730546,96061.0,96058.0,0.00779566]
[1739958781884,0.01630546,96061.0,96058.0,0.00779566]
[1739958782324,0.01730546,96061.0,96058.0,0.00779566]
[1739958782533,0.01630546,96061.0,96058.0,0.00779566]
[1739958782903,0.001,96061.0,96058.0,0.00779566]
[1739958783081,0.1504255,96066.0,96059.0,0.00779566]